fUSD/lending_fUSD_20250804
["ID","MTS","AMOUNT","RATE_DAILY","PERIOD"]
[377264464,1754308244503,-9999.99,0.0004029,2]
[377264466,1754308244513,-8165.72,0.0004029,2]
[377264468,1754308244523,-338.99,0.0004029,2]
[377264470,1754308244534,-9999.99,0.0004029,2]
[377264472,1754308244544,-852.64,0.0004029,2]
[377264474,1754308244554,-9999.99,0.0004029,2]
[377264476,1754308244564,-150.99,0.0004029,2]
[377264478,1754308244575,-2566.84,0.0004029,2]
[377264479,1754308244586,-9999.99,0.0004029,2]
[377264480,1754308244596,-150.99,0.0004029,30]
[377264481,1754308244606,-1716.36,0.0004029,30]
[377264482,1754308244616,-200.0,0.00040291,20]
[377264483,1754308244627,-500.0,0.00040369,2]
[377264484,1754308244637,-500.0,0.00040387,2]
[377264485,1754308244647,-500.0,0.00040394,2]
[377264486,1754308244657,-500.0,0.00040414,2]
[377264488,1754308244669,-10466.5982904,0.00040537,3]
[377264490,1754308244679,-1000.0,0.00040544,2]
[377264492,1754308244689,-500.0,0.00040546,3]
[377264494,1754308244700,-214.21,0.000406,30]
[377264496,1754308244710,-846.39,0.000406,14]
[377264498,1754308244720,-2950.96438,0.000406,5]
[377264500,1754308244731,-171.00283647,0.00040693,15]
[377264502,1754308244741,-10466.5982904,0.00040714,3]
[377264504,1754308244752,-1000.0,0.00040723,5]
[377264506,1754308244762,-19348.1602113,0.00040724,3]
[377264508,1754308244773,-1000.0,0.00040734,5]
[377264510,1754308244783,-264.79544285,0.00040753,16]
[377264512,1754308244794,-1054.54622436,0.00040768,5]
[377264514,1754308244804,-350.0,0.00040768,5]
[377264517,1754308244815,-150.5,0.00040791,120]
[377264519,1754308244824,-519.0,0.00040795,120]
[377264521,1754308244836,-150.5,0.00040801,120]
[377264523,1754308244846,-150.5,0.00040811,120]
[377264525,1754308244855,-10466.5982904,0.00040811,3]
[377264527,1754308244866,-500.0,0.0004082,4]
[377264529,1754308244876,-195.66,0.00040821,2]
[377264531,1754308244886,-776.0,0.0004085,2]
[377264533,1754308244896,-1000.0,0.000409,7]
[377264535,1754308244906,-200.0,0.00040903,20]
[377264538,1754308244921,-501.81484102,0.00040999,5]
[377264540,1754308244932,-150.0,0.00041073,5]
[377264542,1754308244942,-288.73031269,0.00041074,28]
[377264544,1754308244952,-20933.1965809,0.00041076,3]
[377264545,1754308244964,-150.0,0.00041085,2]
[377264548,1754308244975,-10466.5982904,0.00041085,3]
[377264550,1754308244986,-38696.3204227,0.00041086,3]
[377264552,1754308244997,-20933.1965809,0.00041086,3]
[377264554,1754308245007,-500.0,0.00041094,5]
[377264556,1754308245017,-150.0,0.00041095,120]
[377264558,1754308245028,-157.76,0.00041096,2]
[377264560,1754308245038,-200.0,0.00041096,120]
[377264562,1754308245048,-200.0,0.00041096,20]
[377264564,1754308245058,-200.0,0.00041096,20]
[377264566,1754308245069,-1000.0,0.000411,7]
[377264568,1754308245079,-391.0,0.0004114,30]
[377264570,1754308245090,-9795.20485475,0.00041186,15]
[377264572,1754308245101,-1500.0,0.00041271,10]
[377264574,1754308245111,-450.0,0.00041316,10]
[377264576,1754308245122,-300.46,0.00041339,120]
[377264579,1754308245134,-150.5,0.00041349,120]
[377264581,1754308245144,-10466.5982904,0.00041358,3]
[377264583,1754308245155,-150.5,0.00041359,120]
[377264585,1754308245165,-500.0,0.00041368,120]
[377264587,1754308245175,-600.0,0.00041488,14]
[377264589,1754308245186,-600.0,0.00041488,14]
[377264591,1754308245197,-529.63,0.00041488,14]
[377264593,1754308245207,-2950.96438,0.000416,10]
[377264595,1754308245217,-600.0,0.00041619,14]
[377264598,1754308245228,-600.0,0.00041619,14]
[377264600,1754308245238,-529.63,0.00041619,14]
[377264602,1754308245247,-250.0,0.00041621,10]
[377264604,1754308245257,-10466.5982904,0.00041622,3]
[377264606,1754308245267,-10466.5982904,0.00041623,3]
[377264608,1754308245277,-187.27921265,0.00041623,7]
[377264610,1754308245288,-151.18,0.00041623,2]
[377264612,1754308245298,-19348.1602113,0.00041632,3]
[377264614,1754308245308,-10466.5982904,0.00041632,3]
[377264616,1754308245318,-19348.1602113,0.00041633,3]
[377264618,1754308245328,-10466.5982904,0.00041633,3]
[377264620,1754308245338,-400.0,0.00041642,2]
[377264623,1754308245354,-400.0,0.00041642,2]
[377264625,1754308245364,-400.0,0.00041642,2]
[377264627,1754308245375,-400.0,0.00041642,2]
[377264630,1754308245387,-587.24,0.00041642,2]
[377264632,1754308245400,-400.0,0.00041642,2]
[377264634,1754308245410,-400.0,0.00041642,2]
[377264636,1754308245420,-400.0,0.00041642,2]
[377264638,1754308245431,-400.0,0.00041642,2]
[377264640,1754308245441,-244.58836629,0.00041642,2]
[377264642,1754308245452,-400.0,0.00041642,2]
[377264644,1754308245462,-400.0,0.00041642,2]
[377264646,1754308245473,-400.0,0.00041642,2]
[377264648,1754308245484,-400.0,0.00041642,2]
[377264650,1754308245494,-400.0,0.00041642,2]
[377264653,1754308245505,-400.0,0.00041642,2]
[377264655,1754308245516,-400.0,0.00041642,2]
[377264657,1754308245526,-400.0,0.00041642,2]
[377264659,1754308245536,-400.0,0.00041642,2]
[377264661,1754308245546,-400.0,0.00041642,2]
[377264663,1754308245557,-400.0,0.00041642,2]
[377264665,1754308245567,-400.0,0.00041642,2]
[377264667,1754308245578,-400.0,0.00041642,2]
[377264669,1754308245588,-400.0,0.00041642,2]
[377264672,1754308245599,-486.1,0.00041642,2]
[377264674,1754308245610,-400.0,0.00041642,2]
[377264676,1754308245620,-502.2,0.00041642,2]
[377264678,1754308245631,-400.0,0.00041642,2]
[377264680,1754308245642,-400.0,0.00041642,2]
[377264682,1754308245652,-400.0,0.00041642,2]
[377264684,1754308245663,-400.0,0.00041642,2]
[377264686,1754308245674,-150.0,0.00041642,12]
[377264689,1754308245686,-400.0,0.00041642,2]
[377264691,1754308245695,-400.0,0.00041642,2]
[377264693,1754308245706,-400.0,0.00041642,2]
[377264695,1754308245716,-400.0,0.00041642,2]
[377264697,1754308245727,-400.0,0.00041642,2]
[377264699,1754308245737,-500.0,0.00041642,120]
[377264701,1754308245748,-2500.0,0.00041643,10]
[377264703,1754308245758,-214.21,0.000417,30]
[377264705,1754308245769,-846.39,0.000417,14]
[377264708,1754308245780,-600.0,0.00041749,14]
[377264710,1754308245790,-600.0,0.00041749,14]
[377264712,1754308245802,-192.0,0.0004178,58]
[377264714,1754308245812,-1000.0,0.000418,7]
[377264716,1754308245822,-264.79544285,0.00041816,17]
[377264718,1754308245833,-931.54691545,0.00041819,10]
[377264720,1754308245842,-648.38,0.00041841,120]
[377264722,1754308245852,-550.0,0.00041864,10]
[377264724,1754308245863,-760.0,0.0004188,2]
[377264726,1754308245873,-10466.5982904,0.00041897,3]
[377264728,1754308245885,-20933.1965809,0.00041906,3]
[377264731,1754308245895,-19348.1602113,0.00041907,3]
[377264733,1754308245905,-400.0,0.00041916,2]
[377264735,1754308245916,-400.0,0.00041916,2]
[377264737,1754308245926,-400.0,0.00041916,2]
[377264739,1754308245937,-400.0,0.00041916,2]
[377264741,1754308245947,-587.24,0.00041916,2]
[377264743,1754308245957,-400.0,0.00041916,2]
[377264745,1754308245967,-400.0,0.00041916,2]
[377264747,1754308245978,-400.0,0.00041916,2]
[377264749,1754308245988,-400.0,0.00041916,2]
[377264752,1754308245999,-400.0,0.00041916,2]
[377264754,1754308246009,-400.0,0.00041916,2]
[377264756,1754308246019,-400.0,0.00041916,2]
[377264758,1754308246029,-400.0,0.00041916,2]
[377264760,1754308246039,-400.0,0.00041916,2]
[377264762,1754308246050,-400.0,0.00041916,2]
[377264764,1754308246060,-400.0,0.00041916,2]
[377264766,1754308246070,-400.0,0.00041916,2]
[377264768,1754308246080,-400.0,0.00041916,2]
[377264770,1754308246091,-400.0,0.00041916,2]
[377264772,1754308246101,-400.0,0.00041916,2]
[377264774,1754308246111,-400.0,0.00041916,2]
[377264777,1754308246122,-400.0,0.00041916,2]
[377264779,1754308246136,-400.0,0.00041916,2]
[377264781,1754308246146,-486.1,0.00041916,2]
[377264783,1754308246156,-400.0,0.00041916,2]
[377264785,1754308246166,-502.2,0.00041916,2]
[377264787,1754308246176,-400.0,0.00041916,2]
[377264789,1754308246186,-400.0,0.00041916,2]
[377264791,1754308246196,-400.0,0.00041916,2]
[377264793,1754308246206,-373.04374807,0.00041916,2]
[377264795,1754308246218,-400.0,0.00041916,2]
[377264797,1754308246227,-400.0,0.00041916,2]
[377264799,1754308246238,-400.0,0.00041916,2]
[377264802,1754308246249,-400.0,0.00041916,2]
[377264804,1754308246261,-500.0,0.00041916,120]
[377264806,1754308246271,-2218.9,0.00041996,120]
[377264808,1754308246282,-243.30512258,0.00042,10]
[377264810,1754308246293,-152.0,0.00042008,3]
[377264812,1754308246303,-1343.9261603,0.0004201,2]
[377264814,1754308246315,-350.0,0.00042168,10]
[377264816,1754308246325,-10466.5982904,0.0004217,3]
[377264818,1754308246336,-19348.1602113,0.0004218,3]
[377264821,1754308246347,-20933.1965809,0.0004218,3]
[377264823,1754308246356,-400.0,0.0004219,2]
[377264825,1754308246366,-400.0,0.0004219,2]
[377264827,1754308246376,-400.0,0.0004219,2]
[377264829,1754308246386,-400.0,0.0004219,2]
[377264831,1754308246401,-587.24,0.0004219,2]
[377264833,1754308246411,-400.0,0.0004219,2]
[377264835,1754308246421,-400.0,0.0004219,2]
[377264837,1754308246431,-400.0,0.0004219,2]
[377264839,1754308246441,-400.0,0.0004219,2]
[377264841,1754308246451,-545.98,0.0004219,2]
[377264843,1754308246461,-400.0,0.0004219,2]
[377264845,1754308246472,-400.0,0.0004219,2]
[377264846,1754308246481,-400.0,0.0004219,2]
[377264847,1754308246491,-400.0,0.0004219,2]
[377264848,1754308246501,-400.0,0.0004219,2]
[377264849,1754308246511,-400.0,0.0004219,2]
[377264850,1754308246520,-400.0,0.0004219,2]
[377264851,1754308246530,-400.0,0.0004219,2]
[377264852,1754308246540,-400.0,0.0004219,2]
[377264853,1754308246550,-400.0,0.0004219,2]
[377264854,1754308246560,-400.0,0.0004219,2]
[377264856,1754308246570,-486.1,0.0004219,2]
[377264858,1754308246579,-400.0,0.0004219,2]
[377264860,1754308246589,-502.2,0.0004219,2]
[377264862,1754308246599,-400.0,0.0004219,2]
[377264864,1754308246610,-400.0,0.0004219,2]
[377264866,1754308246620,-400.0,0.0004219,2]
[377264868,1754308246630,-400.0,0.0004219,2]
[377264870,1754308246640,-400.0,0.0004219,2]
[377264872,1754308246650,-400.0,0.0004219,2]
[377264874,1754308246660,-400.0,0.0004219,2]
[377264876,1754308246670,-500.0,0.0004219,120]
[377264879,1754308246680,-195.66,0.00042191,120]
[377264881,1754308246691,-3600.0,0.000422,2]
[377264883,1754308246701,-952.7340802,0.00042245,46]
[377264885,1754308246711,-650.0,0.00042412,10]
[377264887,1754308246721,-10466.5982904,0.00042454,3]
[377264889,1754308246732,-150.0,0.00042455,2]
[377264891,1754308246742,-400.0,0.00042464,2]
[377264893,1754308246752,-400.0,0.00042464,2]
[377264895,1754308246762,-400.0,0.00042464,2]
[377264897,1754308246772,-587.24,0.00042464,2]
[377264899,1754308246782,-400.0,0.00042464,2]
[377264901,1754308246792,-474.39,0.00042464,2]
[377264903,1754308246802,-400.0,0.00042464,2]
[377264905,1754308246812,-400.0,0.00042464,2]
[377264907,1754308246822,-400.0,0.00042464,2]
[377264909,1754308246832,-400.0,0.00042464,2]
[377264912,1754308246842,-400.0,0.00042464,2]
[377264914,1754308246852,-400.0,0.00042464,2]
[377264916,1754308246861,-400.0,0.00042464,2]
[377264918,1754308246871,-400.0,0.00042464,2]
[377264920,1754308246881,-400.0,0.00042464,2]
[377264922,1754308246891,-400.0,0.00042464,2]
[377264924,1754308246901,-486.1,0.00042464,2]
[377264926,1754308246911,-400.0,0.00042464,2]
[377264928,1754308246920,-502.2,0.00042464,2]
[377264930,1754308246930,-400.0,0.00042464,2]
[377264932,1754308246940,-400.0,0.00042464,2]
[377264934,1754308246951,-400.0,0.00042464,2]
[377264936,1754308246962,-538.67627557,0.00042464,2]
[377264938,1754308246972,-400.0,0.00042464,2]
[377264955,1754308247124,-400.0,0.00042464,2]
[377264958,1754308247135,-543.77664247,0.00042464,2]
[377264960,1754308247144,-500.0,0.00042464,120]
[377264962,1754308247154,-1000.0,0.00042465,2]
[377264963,1754308247164,-1007.17980342,0.00042465,2]
[377264966,1754308247173,-2950.96438,0.000426,14]
[377264968,1754308247183,-207.0,0.000427,2]
[377264969,1754308247192,-333.07046921,0.00042716,10]
[377264972,1754308247202,-1687.11713924,0.00042723,8]
[377264974,1754308247211,-400.0,0.00042738,2]
[377264976,1754308247220,-400.0,0.00042738,2]
[377264978,1754308247230,-234.89,0.00042738,2]
[377264980,1754308247239,-587.24,0.00042738,2]
[377264982,1754308247249,-400.0,0.00042738,2]
[377264984,1754308247259,-160.82,0.00042738,2]
[377264986,1754308247269,-400.0,0.00042738,2]
[377264988,1754308247278,-400.0,0.00042738,2]
[377264990,1754308247287,-400.0,0.00042738,2]
[377264992,1754308247296,-400.0,0.00042738,2]
[377264994,1754308247306,-400.0,0.00042738,2]
[377264996,1754308247315,-400.0,0.00042738,2]
[377264997,1754308247326,-400.0,0.00042738,2]
[377264999,1754308247336,-400.0,0.00042738,2]
[377265002,1754308247345,-400.0,0.00042738,2]
[377265004,1754308247355,-486.1,0.00042738,2]
[377265006,1754308247365,-400.0,0.00042738,2]
[377265008,1754308247375,-502.2,0.00042738,2]
[377265010,1754308247386,-400.0,0.00042738,2]
[377265011,1754308247400,-400.0,0.00042738,2]
[377265013,1754308247410,-400.0,0.00042738,2]
[377265014,1754308247420,-400.0,0.00042738,2]
[377265016,1754308247430,-400.0,0.00042738,2]
[377265018,1754308247439,-500.0,0.00042738,120]
[377265019,1754308247449,-214.21,0.000429,30]
[377265021,1754308247459,-846.39,0.000429,14]
[377265023,1754308247469,-743.0,0.0004291,2]
[377265024,1754308247478,-171.00283647,0.00042957,15]
[377265026,1754308247488,-750.0,0.0004296,10]
[377265028,1754308247497,-400.0,0.00043012,2]
[377265029,1754308247507,-400.0,0.00043012,2]
[377265031,1754308247516,-587.24,0.00043012,2]
[377265032,1754308247525,-400.0,0.00043012,2]
[377265034,1754308247535,-400.0,0.00043012,2]
[377265036,1754308247545,-400.0,0.00043012,2]
[377265037,1754308247557,-400.0,0.00043012,2]
[377265039,1754308247566,-401.32,0.00043012,2]
[377265041,1754308247575,-400.0,0.00043012,2]
[377265042,1754308247585,-400.0,0.00043012,2]
[377265044,1754308247595,-238.8609547,0.00043012,2]
[377265046,1754308247604,-400.0,0.00043012,2]
[377265047,1754308247614,-400.0,0.00043012,2]
[377265049,1754308247623,-486.1,0.00043012,2]
[377265051,1754308247633,-400.0,0.00043012,2]
[377265052,1754308247643,-502.2,0.00043012,2]
[377265054,1754308247653,-400.0,0.00043012,2]
[377265056,1754308247663,-400.0,0.00043012,2]
[377265057,1754308247672,-400.0,0.00043012,2]
[377265059,1754308247682,-400.0,0.00043012,2]
[377265061,1754308247691,-400.0,0.00043012,2]
[377265063,1754308247701,-500.0,0.00043012,120]
[377265064,1754308247710,-9795.20485475,0.00043115,15]
[377265066,1754308247720,-400.0,0.00043286,2]
[377265068,1754308247730,-400.0,0.00043286,2]
[377265069,1754308247740,-587.24,0.00043286,2]
[377265071,1754308247750,-400.0,0.00043286,2]
[377265073,1754308247760,-400.0,0.00043286,2]
[377265075,1754308247770,-400.0,0.00043286,2]
[377265076,1754308247780,-225.21,0.00043286,2]
[377265078,1754308247789,-400.0,0.00043286,2]
[377265080,1754308247798,-400.0,0.00043286,2]
[377265082,1754308247808,-400.0,0.00043286,2]
[377265083,1754308247818,-400.0,0.00043286,2]
[377265085,1754308247827,-486.1,0.00043286,2]
[377265087,1754308247837,-400.0,0.00043286,2]
[377265089,1754308247846,-502.2,0.00043286,2]
[377265090,1754308247855,-400.0,0.00043286,2]
[377265092,1754308247865,-400.0,0.00043286,2]
[377265094,1754308247875,-400.0,0.00043286,2]
[377265096,1754308247885,-400.0,0.00043286,2]
[377265097,1754308247894,-400.0,0.00043286,2]
[377265099,1754308247904,-500.0,0.00043286,120]
[377265101,1754308247913,-786.3663214,0.00043508,10]
[377265103,1754308247922,-400.0,0.0004356,2]
[377265105,1754308247932,-400.0,0.0004356,2]
[377265106,1754308247941,-587.24,0.0004356,2]
[377265108,1754308247951,-331.13,0.0004356,2]
[377265110,1754308247961,-400.0,0.0004356,2]
[377265112,1754308247970,-400.0,0.0004356,2]
[377265114,1754308247980,-400.0,0.0004356,2]
[377265115,1754308247990,-400.0,0.0004356,2]
[377265117,1754308247999,-400.0,0.0004356,2]
[377265119,1754308248009,-400.0,0.0004356,2]
[377265120,1754308248019,-486.1,0.0004356,2]
[377265122,1754308248028,-400.0,0.0004356,2]
[377265124,1754308248039,-502.2,0.0004356,2]
[377265126,1754308248049,-400.0,0.0004356,2]
[377265127,1754308248060,-400.0,0.0004356,2]
[377265129,1754308248069,-400.0,0.0004356,2]
[377265131,1754308248079,-400.0,0.0004356,2]
[377265133,1754308248089,-400.0,0.0004356,2]
[377265134,1754308248098,-500.0,0.0004356,120]
[377265136,1754308248108,-151.0,0.00043561,14]
[377265138,1754308248119,-151.0,0.00043561,14]
[377265140,1754308248130,-195.66,0.00043561,120]
[377265141,1754308248139,-648.38,0.00043572,120]
[377265143,1754308248149,-2950.96438,0.000436,19]
[377265145,1754308248160,-288.73031269,0.00043618,28]
[377265147,1754308248170,-207.0,0.0004373,2]
[377265149,1754308248179,-1600.0,0.00043741,120]
[377265150,1754308248189,-152.0,0.00043748,4]
[377265152,1754308248198,-2218.9,0.00043795,120]
[377265154,1754308248208,-320.78472812,0.000438,120]
[377265156,1754308248218,-150.0,0.00043824,2]
[377265157,1754308248228,-809.0,0.00043824,2]
[377265159,1754308248238,-956.505,0.00043824,2]
[377265161,1754308248248,-3360.0,0.00043824,2]
[377265163,1754308248258,-1251.0,0.00043824,2]
[377265164,1754308248268,-1310.353,0.00043824,2]
[377265166,1754308248277,-663.587,0.00043824,2]
[377265168,1754308248287,-2115.239,0.00043824,2]
[377265170,1754308248297,-1019.068,0.00043824,2]
[377265171,1754308248307,-567.64,0.00043824,2]
[377265173,1754308248316,-1651.0,0.00043824,2]
[377265175,1754308248326,-21419.0,0.00043824,2]
[377265177,1754308248335,-4137.0,0.00043824,2]
[377265178,1754308248344,-6070.0,0.00043824,2]
[377265180,1754308248354,-864.0,0.00043824,2]
[377265182,1754308248363,-400.0,0.00043834,2]
[377265184,1754308248373,-400.0,0.00043834,2]
[377265185,1754308248382,-587.24,0.00043834,2]
[377265187,1754308248395,-400.0,0.00043834,2]
[377265189,1754308248405,-400.0,0.00043834,2]
[377265191,1754308248414,-400.0,0.00043834,2]
[377265193,1754308248424,-400.0,0.00043834,2]
[377265194,1754308248435,-545.16292237,0.00043834,2]
[377265196,1754308248445,-400.0,0.00043834,2]
[377265198,1754308248454,-486.1,0.00043834,2]
[377265200,1754308248464,-400.0,0.00043834,2]
[377265201,1754308248474,-502.2,0.00043834,2]
[377265203,1754308248485,-400.0,0.00043834,2]
[377265205,1754308248495,-400.0,0.00043834,2]
[377265208,1754308248506,-400.0,0.00043834,2]
[377265210,1754308248515,-400.0,0.00043834,2]
[377265212,1754308248528,-400.0,0.00043834,2]
[377265213,1754308248537,-500.0,0.00043834,120]
[377265214,1754308248546,-999.0,0.00043835,120]
[377265215,1754308248555,-200.0,0.00043836,120]
[377265216,1754308248565,-193.95,0.00043904,30]
[377265217,1754308248574,-727.0,0.0004393,2]
[377265218,1754308248583,-214.21,0.00044,30]
[377265219,1754308248593,-846.39,0.00044,14]
[377265220,1754308248602,-204.78,0.00044108,120]
[377265221,1754308248612,-512.31,0.00044108,120]
[377265222,1754308248621,-587.24,0.00044108,120]
[377265223,1754308248630,-400.0,0.00044108,120]
[377265224,1754308248639,-400.0,0.00044108,120]
[377265225,1754308248648,-400.0,0.00044108,120]
[377265226,1754308248657,-400.0,0.00044108,120]
[377265227,1754308248667,-400.0,0.00044108,120]
[377265228,1754308248675,-486.1,0.00044108,120]
[377265229,1754308248684,-400.0,0.00044108,120]
[377265230,1754308248694,-502.2,0.00044108,120]
[377265232,1754308248703,-400.0,0.00044108,120]
[377265233,1754308248712,-400.0,0.00044108,120]
[377265234,1754308248722,-400.0,0.00044108,120]
[377265236,1754308248731,-400.0,0.00044108,120]
[377265238,1754308248742,-400.0,0.00044108,120]
[377265240,1754308248751,-500.0,0.00044108,120]
[377265242,1754308248761,-587.24,0.00044382,120]
[377265244,1754308248771,-400.0,0.00044382,120]
[377265246,1754308248780,-327.62,0.00044382,120]
[377265248,1754308248789,-400.0,0.00044382,120]
[377265250,1754308248799,-400.0,0.00044382,120]
[377265252,1754308248809,-400.0,0.00044382,120]
[377265254,1754308248819,-486.1,0.00044382,120]
[377265257,1754308248829,-400.0,0.00044382,120]
[377265259,1754308248839,-502.2,0.00044382,120]
[377265261,1754308248849,-371.83033269,0.00044382,120]
[377265263,1754308248860,-400.0,0.00044382,120]
[377265265,1754308248870,-400.0,0.00044382,120]
[377265267,1754308248882,-400.0,0.00044382,120]
[377265269,1754308248892,-400.0,0.00044382,120]
[377265271,1754308248901,-500.0,0.00044382,120]
[377265273,1754308248912,-336.39365751,0.000444,33]
[377265275,1754308248921,-163.48,0.0004441,5]
[377265277,1754308248931,-1000.0,0.00044599,2]
[377265279,1754308248941,-2950.96438,0.000446,24]
[377265281,1754308248952,-236.97885768,0.00044655,7]
[377265283,1754308248962,-587.24,0.00044656,120]
[377265285,1754308248971,-400.0,0.00044656,120]
[377265287,1754308248981,-400.0,0.00044656,120]
[377265289,1754308248990,-400.0,0.00044656,120]
[377265291,1754308249000,-400.0,0.00044656,120]
[377265293,1754308249009,-486.1,0.00044656,120]
[377265295,1754308249019,-400.0,0.00044656,120]
[377265297,1754308249029,-502.2,0.00044656,120]
[377265299,1754308249038,-400.0,0.00044656,120]
[377265301,1754308249048,-400.0,0.00044656,120]
[377265303,1754308249058,-400.0,0.00044656,120]
[377265305,1754308249067,-400.0,0.00044656,120]
[377265307,1754308249078,-500.0,0.00044656,120]
[377265309,1754308249087,-537.09,0.00044725,30]
[377265311,1754308249097,-359.08,0.00044725,30]
[377265313,1754308249107,-1636.08,0.00044725,30]
[377265315,1754308249116,-537.09,0.00044725,30]
[377265317,1754308249125,-537.09,0.00044725,30]
[377265319,1754308249135,-359.08,0.00044725,30]
[377265321,1754308249145,-235.29,0.00044725,30]
[377265323,1754308249155,-170.59,0.00044725,30]
[377265325,1754308249165,-356.32,0.00044725,30]
[377265327,1754308249174,-537.09,0.00044725,30]
[377265329,1754308249184,-154.81,0.00044725,30]
[377265331,1754308249194,-170.75,0.00044725,30]
[377265333,1754308249204,-1653.34,0.00044725,30]
[377265335,1754308249213,-359.08,0.00044725,30]
[377265337,1754308249223,-165.39,0.00044725,30]
[377265339,1754308249233,-359.08,0.00044725,30]
[377265341,1754308249243,-150.0,0.00044725,30]
[377265343,1754308249254,-359.08,0.00044725,30]
[377265345,1754308249264,-150.0,0.00044725,30]
[377265347,1754308249274,-150.0,0.00044725,30]
[377265349,1754308249283,-359.08,0.00044725,30]
[377265351,1754308249293,-537.09,0.00044725,30]
[377265353,1754308249302,-389.56,0.00044725,30]
[377265355,1754308249311,-150.0,0.00044725,30]
[377265357,1754308249321,-537.09,0.00044725,30]
[377265359,1754308249330,-150.0,0.00044725,30]
[377265361,1754308249340,-165.39,0.00044725,30]
[377265363,1754308249350,-359.08,0.00044725,30]
[377265365,1754308249359,-537.09,0.00044725,30]
[377265367,1754308249368,-466.93,0.00044725,30]
[377265369,1754308249379,-150.0,0.00044725,30]
[377265370,1754308249389,-172.88,0.00044725,30]
[377265372,1754308249401,-150.0,0.00044725,30]
[377265375,1754308249411,-165.39,0.00044725,30]
[377265377,1754308249420,-359.08,0.00044725,30]
[377265378,1754308249430,-150.0,0.00044725,30]
[377265381,1754308249439,-537.09,0.00044725,30]
[377265383,1754308249449,-172.88,0.00044725,30]
[377265385,1754308249458,-150.0,0.00044725,30]
[377265387,1754308249468,-537.09,0.00044725,30]
[377265389,1754308249478,-466.93,0.00044725,30]
[377265391,1754308249487,-165.39,0.00044725,30]
[377265392,1754308249496,-359.08,0.00044725,30]
[377265394,1754308249506,-537.09,0.00044725,30]
[377265396,1754308249515,-172.88,0.00044725,30]
[377265398,1754308249525,-537.09,0.00044725,30]
[377265400,1754308249534,-150.0,0.00044725,30]
[377265402,1754308249543,-165.39,0.00044725,30]
[377265404,1754308249554,-359.08,0.00044725,30]
[377265406,1754308249569,-466.93,0.00044725,30]
[377265408,1754308249581,-537.09,0.00044725,30]
[377265410,1754308249591,-150.0,0.00044725,30]
[377265413,1754308249600,-172.88,0.00044725,30]
[377265414,1754308249611,-359.08,0.00044725,30]
[377265416,1754308249621,-537.09,0.00044725,30]
[377265419,1754308249636,-165.39,0.00044725,30]
[377265421,1754308249646,-150.0,0.00044725,30]
[377265423,1754308249657,-172.88,0.00044725,30]
[377265425,1754308249666,-165.39,0.00044725,30]
[377265427,1754308249676,-359.08,0.00044725,30]
[377265429,1754308249685,-150.0,0.00044725,30]